[Event "Early-Titled-Tuesday-Blitz-March-26-2024"]
[Site "Chess.com"]
[Date "2024.03.26"]
[Round "2"]
[White "stollenmonster"]
[Black "Vahe_Danielyan"]
[Result "0-1"]
[WhiteElo "2898"]
[BlackElo "2632"]
[TimeControl "180+1"]
[EndTime "8:18:42 PDT"]
[Termination "Vahe_Danielyan won by resignation"]

1. e4 {[%clk 0:03:00.9]} 1... c6 {[%clk 0:02:57.3]} 2. d4 {[%clk 0:03:00.5]}
2... d5 {[%clk 0:02:56.6]} 3. e5 {[%clk 0:03:01]} 3... Bf5 {[%clk 0:02:52.7]} 4.
Ne2 {[%clk 0:03:01.4]} 4... e6 {[%clk 0:02:47.3]} 5. Ng3 {[%clk 0:03:01.4]} 5...
Bg6 {[%clk 0:02:46.5]} 6. h4 {[%clk 0:03:02]} 6... h6 {[%clk 0:02:41.3]} 7. h5
{[%clk 0:03:02.4]} 7... Bh7 {[%clk 0:02:40.4]} 8. Bd3 {[%clk 0:03:02.8]} 8...
Bxd3 {[%clk 0:02:39.3]} 9. cxd3 {[%clk 0:03:03.7]} 9... Qb6 {[%clk 0:02:24]} 10.
Be3 {[%clk 0:03:02.3]} 10... Qxb2 {[%clk 0:02:19.1]} 11. Nd2 {[%clk 0:03:02.7]}
11... Qa3 {[%clk 0:02:15.5]} 12. O-O {[%clk 0:03:02.5]} 12... Qxd3 {[%clk
0:02:09.5]} 13. Rb1 {[%clk 0:03:03]} 13... Qa6 {[%clk 0:02:09.2]} 14. Qg4 {[%clk
0:03:01.9]} 14... Ne7 {[%clk 0:02:03.6]} 15. f4 {[%clk 0:03:01.5]} 15... Nd7
{[%clk 0:01:59]} 16. f5 {[%clk 0:03:00.7]} 16... Qd3 {[%clk 0:01:41.4]} 17. Rb3
{[%clk 0:02:59.8]} 17... Qa6 {[%clk 0:01:29.8]} 18. fxe6 {[%clk 0:02:59.4]}
18... fxe6 {[%clk 0:01:30.7]} 19. Qxe6 {[%clk 0:02:59.3]} 19... O-O-O {[%clk
0:01:26]} 20. Rxf8 {[%clk 0:01:16.4]} 20... Rhxf8 {[%clk 0:01:23.4]} 21. Qxe7
{[%clk 0:01:16.6]} 21... Rde8 {[%clk 0:01:18.5]} 22. Qd6 {[%clk 0:01:14.9]}
22... c5 {[%clk 0:01:15.7]} 23. Qxd5 {[%clk 0:01:13]} 23... Qc6 {[%clk 0:01:14]}
24. Qxc6+ {[%clk 0:01:08.3]} 24... bxc6 {[%clk 0:01:14.9]} 25. Nc4 {[%clk
0:01:08.5]} 25... Kc7 {[%clk 0:01:13.8]} 26. Ra3 {[%clk 0:00:59]} 26... a6
{[%clk 0:00:58.4]} 27. dxc5 {[%clk 0:00:47]} 27... Nxe5 {[%clk 0:00:57]} 28. Nd6
{[%clk 0:00:46.9]} 28... Rb8 {[%clk 0:00:55.5]} 29. Rb3 {[%clk 0:00:41.4]} 29...
Rxb3 {[%clk 0:00:47.9]} 30. axb3 {[%clk 0:00:41.9]} 30... Ng4 {[%clk 0:00:48.8]}
31. Bd4 {[%clk 0:00:41.2]} 31... Rb8 {[%clk 0:00:43.9]} 32. Kf1 {[%clk
0:00:21.1]} 32... Rxb3 {[%clk 0:00:42.2]} 33. Ngf5 {[%clk 0:00:21.6]} 33... a5
{[%clk 0:00:40.3]} 34. Nxg7 {[%clk 0:00:20.5]} 34... a4 {[%clk 0:00:39.2]} 35.
Nge8+ {[%clk 0:00:18.3]} 35... Kd7 {[%clk 0:00:33.5]} 36. Nf6+ {[%clk
0:00:17.7]} 36... Nxf6 {[%clk 0:00:32.9]} 37. Bxf6 {[%clk 0:00:18.2]} 37... a3
{[%clk 0:00:33.8]} 38. Nc4 {[%clk 0:00:10.3]} 38... Rb4 {[%clk 0:00:23.4]} 39.
Ne5+ {[%clk 0:00:07.9]} 39... Ke6 {[%clk 0:00:19.6]} 40. Bg7 {[%clk 0:00:08.6]}
40... Rb7 {[%clk 0:00:12.9]} 41. Bh8 {[%clk 0:00:06.4]} 41... Rb8 {[%clk
0:00:12.8]} 42. Bg7 {[%clk 0:00:05.3]} 42... Rb1+ {[%clk 0:00:13.7]} 43. Kf2
{[%clk 0:00:05.3]} 43... Rb2+ {[%clk 0:00:14.6]} 44. Kf3 {[%clk 0:00:05.4]}
44... a2 {[%clk 0:00:15.5]} 45. Nxc6 {[%clk 0:00:04.1]} 45... a1=Q {[%clk
0:00:13.4]} 46. Nd4+ {[%clk 0:00:03.9]} 46... Kf7 {[%clk 0:00:12.3]} 47. Be5
{[%clk 0:00:03.5]} 47... Qd1+ {[%clk 0:00:12]} 48. Ke4 {[%clk 0:00:04]} 48...
Rxg2 {[%clk 0:00:10.7]} 49. Kd5 {[%clk 0:00:04.9]} 49... Rg5 {[%clk 0:00:09.1]}
50. c6 {[%clk 0:00:05.8]} 50... Qh1+ {[%clk 0:00:03.5]} 51. Kd6 {[%clk
0:00:05.9]} 51... Rxe5 {[%clk 0:00:03.9]} 52. Kxe5 {[%clk 0:00:06.2]} 52...
Qxh5+ {[%clk 0:00:04.3]} 53. Kd6 {[%clk 0:00:06.7]} 53... Qh2+ {[%clk
0:00:04.6]} 54. Kd7 {[%clk 0:00:06.9]} 54... h5 {[%clk 0:00:05.2]} 55. c7 {[%clk
0:00:07.2]} 55... Qh3+ {[%clk 0:00:04.1]} 56. Kd8 {[%clk 0:00:07.2]} 56... Qd3
{[%clk 0:00:04]} 57. c8=Q {[%clk 0:00:05.2]} 57... Qxd4+ {[%clk 0:00:04.5]} 58.
Kc7 {[%clk 0:00:05.7]} 58... Qc5+ {[%clk 0:00:04.6]} 0-1

[Event "Early-Titled-Tuesday-Blitz-March-26-2024"]
[Site "Chess.com"]
[Date "2024.03.26"]
[Round "2"]
[White "Likvidator228"]
[Black "Cayse"]
[Result "1-0"]
[WhiteElo "2580"]
[BlackElo "2816"]
[TimeControl "180+1"]
[EndTime "8:18:47 PDT"]
[Termination "Likvidator228 won on time"]

1. d4 {[%clk 0:03:00.9]} 1... e6 {[%clk 0:02:57.3]} 2. Bf4 {[%clk 0:03:01.1]}
2... c5 {[%clk 0:02:56.9]} 3. e3 {[%clk 0:03:01.6]} 3... Nc6 {[%clk 0:02:56.9]}
4. c3 {[%clk 0:03:01.4]} 4... Nf6 {[%clk 0:02:56.5]} 5. Nd2 {[%clk 0:03:00.3]}
5... b6 {[%clk 0:02:55.1]} 6. h3 {[%clk 0:02:58.7]} 6... Bb7 {[%clk 0:02:53.7]}
7. Ngf3 {[%clk 0:02:59.1]} 7... Be7 {[%clk 0:02:49.5]} 8. Bd3 {[%clk 0:02:59.1]}
8... O-O {[%clk 0:02:49.2]} 9. O-O {[%clk 0:02:59.4]} 9... d5 {[%clk 0:02:49.1]}
10. Ne5 {[%clk 0:02:56.3]} 10... Nxe5 {[%clk 0:02:45]} 11. Bxe5 {[%clk
0:02:56.5]} 11... Nd7 {[%clk 0:02:45]} 12. Bg3 {[%clk 0:02:53.7]} 12... a5
{[%clk 0:02:33.1]} 13. Qe2 {[%clk 0:02:53]} 13... f5 {[%clk 0:02:27]} 14. Nf3
{[%clk 0:02:48.2]} 14... Bf6 {[%clk 0:02:26.6]} 15. Bb5 {[%clk 0:02:42.9]} 15...
Qe7 {[%clk 0:02:21.5]} 16. Rfe1 {[%clk 0:02:37.4]} 16... h6 {[%clk 0:02:15.9]}
17. Bxd7 {[%clk 0:02:35.4]} 17... Qxd7 {[%clk 0:02:15.7]} 18. Be5 {[%clk
0:02:34.7]} 18... Be7 {[%clk 0:02:11.8]} 19. Bg3 {[%clk 0:02:34.4]} 19... Ba6
{[%clk 0:02:07.9]} 20. Qc2 {[%clk 0:02:33.8]} 20... Rac8 {[%clk 0:02:04.5]} 21.
Ne5 {[%clk 0:02:34.1]} 21... Qe8 {[%clk 0:02:04.4]} 22. Qb3 {[%clk 0:02:27.1]}
22... b5 {[%clk 0:01:57.6]} 23. a4 {[%clk 0:02:15.2]} 23... b4 {[%clk
0:01:55.7]} 24. cxb4 {[%clk 0:02:12.1]} 24... c4 {[%clk 0:01:53.9]} 25. Qd1
{[%clk 0:02:04.7]} 25... axb4 {[%clk 0:01:44.9]} 26. Qc2 {[%clk 0:01:50.8]}
26... Kh7 {[%clk 0:01:21.9]} 27. Rec1 {[%clk 0:01:49.8]} 27... Qd8 {[%clk
0:01:18.9]} 28. f3 {[%clk 0:01:48.7]} 28... Qa5 {[%clk 0:01:14.8]} 29. Be1
{[%clk 0:01:48.4]} 29... Bd6 {[%clk 0:01:11.5]} 30. f4 {[%clk 0:01:47.5]} 30...
Qc7 {[%clk 0:01:08.6]} 31. Kh1 {[%clk 0:01:43.5]} 31... Rb8 {[%clk 0:01:06]} 32.
Qd1 {[%clk 0:01:37.6]} 32... Rfc8 {[%clk 0:01:00.7]} 33. Qh5 {[%clk 0:01:35.9]}
33... Bxe5 {[%clk 0:01:00.5]} 34. fxe5 {[%clk 0:01:35.4]} 34... c3 {[%clk
0:01:01.2]} 35. bxc3 {[%clk 0:01:35.5]} 35... b3 {[%clk 0:01:01.3]} 36. Rcb1
{[%clk 0:01:25.9]} 36... Bc4 {[%clk 0:00:56.3]} 37. Rb2 {[%clk 0:01:26.1]} 37...
Ra8 {[%clk 0:00:55.9]} 38. g4 {[%clk 0:01:16.1]} 38... fxg4 {[%clk 0:00:45.5]}
39. hxg4 {[%clk 0:01:15.4]} 39... Rf8 {[%clk 0:00:45.4]} 40. Bg3 {[%clk
0:01:04.4]} 40... Qd7 {[%clk 0:00:14.7]} 41. g5 {[%clk 0:00:43.9]} 41... Rxa4
{[%clk 0:00:13.8]} 42. Rg1 {[%clk 0:00:43.6]} 42... Ra2 {[%clk 0:00:12.9]} 43.
gxh6 {[%clk 0:00:41.5]} 43... g6 {[%clk 0:00:12.8]} 44. Qh2 {[%clk 0:00:39.5]}
44... Rf3 {[%clk 0:00:11.9]} 45. Bf4 {[%clk 0:00:34.8]} 45... Qf7 {[%clk
0:00:11.9]} 46. Rxa2 {[%clk 0:00:25.1]} 46... bxa2 {[%clk 0:00:11.9]} 47. Qg2
{[%clk 0:00:25.7]} 47... Rxf4 {[%clk 0:00:08.1]} 48. exf4 {[%clk 0:00:26]} 48...
Qf5 {[%clk 0:00:08.7]} 49. Qg3 {[%clk 0:00:20.6]} 49... Qb1 {[%clk 0:00:08.1]}
50. Qg5 {[%clk 0:00:12.6]} 50... Qe4+ {[%clk 0:00:07.5]} 51. Kh2 {[%clk
0:00:11.9]} 51... Qf5 {[%clk 0:00:07.4]} 52. Qe7+ {[%clk 0:00:11.5]} 52... Kxh6
{[%clk 0:00:07.4]} 53. Qh4+ {[%clk 0:00:07.4]} 53... Qh5 {[%clk 0:00:06.7]} 54.
Kg3 {[%clk 0:00:04.9]} 54... Qxh4+ {[%clk 0:00:06.4]} 55. Kxh4 {[%clk
0:00:05.8]} 55... Bd3 {[%clk 0:00:06.9]} 56. Ra1 {[%clk 0:00:04.6]} 56... Bb1
{[%clk 0:00:06.9]} 57. Kg4 {[%clk 0:00:05.1]} 57... Kg7 {[%clk 0:00:07]} 58. Kg5
{[%clk 0:00:05.4]} 58... Kf7 {[%clk 0:00:07.5]} 59. Kh6 {[%clk 0:00:05.8]} 59...
Ke7 {[%clk 0:00:07.8]} 60. Kg7 {[%clk 0:00:06.4]} 60... Ke8 {[%clk 0:00:03.9]}
61. Kf6 {[%clk 0:00:06.6]} 61... Kd7 {[%clk 0:00:03.3]} 62. Kf7 {[%clk
0:00:07.1]} 1-0

[Event "Early-Titled-Tuesday-Blitz-March-26-2024"]
[Site "Chess.com"]
[Date "2024.03.26"]
[Round "2"]
[White "mary-sanna"]
[Black "StankovicIvan"]
[Result "1-0"]
[WhiteElo "2235"]
[BlackElo "2485"]
[TimeControl "180+1"]
[EndTime "8:18:48 PDT"]
[Termination "mary-sanna won by resignation"]

1. d4 {[%clk 0:03:00.9]} 1... d5 {[%clk 0:02:58.2]} 2. c4 {[%clk 0:02:59.6]}
2... c6 {[%clk 0:02:58.2]} 3. Nf3 {[%clk 0:02:59.6]} 3... Nf6 {[%clk 0:02:58.5]}
4. g3 {[%clk 0:02:59.3]} 4... dxc4 {[%clk 0:02:55.3]} 5. Bg2 {[%clk 0:02:57.8]}
5... b5 {[%clk 0:02:52.1]} 6. Ne5 {[%clk 0:02:57.4]} 6... Bb7 {[%clk 0:02:49.9]}
7. a4 {[%clk 0:02:56.3]} 7... a6 {[%clk 0:02:48.6]} 8. b3 {[%clk 0:02:56.3]}
8... cxb3 {[%clk 0:02:44.6]} 9. Qxb3 {[%clk 0:02:53.6]} 9... e6 {[%clk 0:02:43]}
10. Bb2 {[%clk 0:02:48.3]} 10... Bd6 {[%clk 0:02:41.8]} 11. O-O {[%clk
0:02:29.3]} 11... O-O {[%clk 0:02:40.8]} 12. Rc1 {[%clk 0:02:29.2]} 12... Nd5
{[%clk 0:02:26.5]} 13. Nd2 {[%clk 0:02:23.3]} 13... Bxe5 {[%clk 0:02:11.4]} 14.
dxe5 {[%clk 0:02:23.3]} 14... Nd7 {[%clk 0:02:12.3]} 15. Ne4 {[%clk 0:02:16.4]}
15... c5 {[%clk 0:01:56.1]} 16. Nxc5 {[%clk 0:02:08.4]} 16... Nxc5 {[%clk
0:01:55.7]} 17. Rxc5 {[%clk 0:02:08.4]} 17... b4 {[%clk 0:01:43.5]} 18. a5
{[%clk 0:01:56.1]} 18... Rc8 {[%clk 0:01:42.2]} 19. Rac1 {[%clk 0:01:55.7]}
19... Rxc5 {[%clk 0:01:40.8]} 20. Rxc5 {[%clk 0:01:56.6]} 20... Qd7 {[%clk
0:01:34.6]} 21. e4 {[%clk 0:01:37.9]} 21... Ne7 {[%clk 0:01:34.5]} 22. Qxb4
{[%clk 0:01:35.3]} 22... Rc8 {[%clk 0:01:03.3]} 23. Rxc8+ {[%clk 0:01:26.8]}
23... Nxc8 {[%clk 0:01:03.2]} 24. Ba3 {[%clk 0:01:02.9]} 24... h6 {[%clk
0:01:00.3]} 25. h4 {[%clk 0:00:51.7]} 25... Na7 {[%clk 0:00:59.1]} 26. Qd6
{[%clk 0:00:44.8]} 26... Bc6 {[%clk 0:00:53.9]} 27. Qxd7 {[%clk 0:00:40.5]}
27... Bxd7 {[%clk 0:00:53.8]} 28. Bf1 {[%clk 0:00:40.8]} 28... Nc6 {[%clk
0:00:30.9]} 29. Bxa6 {[%clk 0:00:32]} 29... Nxa5 {[%clk 0:00:29.5]} 30. Bd6
{[%clk 0:00:23]} 30... Bc6 {[%clk 0:00:28.8]} 31. Bd3 {[%clk 0:00:21.8]} 31...
Nb7 {[%clk 0:00:26.9]} 32. f3 {[%clk 0:00:20.8]} 32... f6 {[%clk 0:00:21.5]} 33.
Bc7 {[%clk 0:00:19.6]} 33... Kf7 {[%clk 0:00:19.4]} 34. Kf2 {[%clk 0:00:19.2]}
34... Nc5 {[%clk 0:00:18.8]} 35. Bc4 {[%clk 0:00:17.6]} 35... Ke7 {[%clk
0:00:17.4]} 36. Bd6+ {[%clk 0:00:17.4]} 36... Kf7 {[%clk 0:00:18]} 37. Bxc5
{[%clk 0:00:18.3]} 37... fxe5 {[%clk 0:00:18.9]} 38. Ke3 {[%clk 0:00:18.5]}
38... Kf6 {[%clk 0:00:19.3]} 39. Bd6 {[%clk 0:00:18.5]} 39... g5 {[%clk
0:00:19.2]} 40. hxg5+ {[%clk 0:00:19.4]} 40... hxg5 {[%clk 0:00:20.1]} 41. Bc7
{[%clk 0:00:19]} 41... Ba4 {[%clk 0:00:19.9]} 42. Ba5 {[%clk 0:00:18.3]} 42...
Bd1 {[%clk 0:00:19.4]} 43. Bc3 {[%clk 0:00:18.2]} 43... Ba4 {[%clk 0:00:18.6]}
44. f4 {[%clk 0:00:18.5]} 44... gxf4+ {[%clk 0:00:19.2]} 45. gxf4 {[%clk
0:00:19.4]} 45... Kf7 {[%clk 0:00:19.1]} 46. Bxe5 {[%clk 0:00:19.8]} 46... Ke7
{[%clk 0:00:19.6]} 47. Kd4 {[%clk 0:00:20]} 47... Bd7 {[%clk 0:00:19.6]} 48. Kc5
{[%clk 0:00:20.2]} 48... Bc8 {[%clk 0:00:18.4]} 49. Bb5 {[%clk 0:00:20.1]} 49...
Bb7 {[%clk 0:00:18.1]} 50. Bc6 {[%clk 0:00:20.4]} 50... Bc8 {[%clk 0:00:18.6]}
51. Bd6+ {[%clk 0:00:20.1]} 51... Kf6 {[%clk 0:00:19]} 52. Kd4 {[%clk
0:00:18.3]} 52... Ba6 {[%clk 0:00:17]} 53. Bc7 {[%clk 0:00:16.4]} 53... Bf1
{[%clk 0:00:16.2]} 54. Bd8+ {[%clk 0:00:15.9]} 54... Kf7 {[%clk 0:00:16.6]} 55.
Ke5 {[%clk 0:00:16.2]} 55... Bh3 {[%clk 0:00:16.2]} 56. Bb5 {[%clk 0:00:15.3]}
56... Kg6 {[%clk 0:00:15]} 57. Bh4 {[%clk 0:00:14.6]} 57... Kf7 {[%clk
0:00:15.2]} 58. Bc4 {[%clk 0:00:14.6]} 58... Bg4 {[%clk 0:00:13.7]} 59. f5
{[%clk 0:00:14.5]} 1-0

[Event "Early-Titled-Tuesday-Blitz-March-26-2024"]
[Site "Chess.com"]
[Date "2024.03.26"]
[Round "2"]
[White "the_chess_child"]
[Black "SashaKuzhilniy"]
[Result "1/2-1/2"]
[WhiteElo "2875"]
[BlackElo "2601"]
[TimeControl "180+1"]
[EndTime "8:18:56 PDT"]
[Termination "Game drawn by stalemate"]

1. e4 {[%clk 0:03:00.9]} 1... c6 {[%clk 0:02:59]} 2. d3 {[%clk 0:03:00.1]} 2...
d5 {[%clk 0:02:59.9]} 3. Nd2 {[%clk 0:03:00.3]} 3... e5 {[%clk 0:02:55.8]} 4.
Ngf3 {[%clk 0:03:00.4]} 4... Qc7 {[%clk 0:02:55.8]} 5. g3 {[%clk 0:02:46.6]}
5... Nf6 {[%clk 0:02:55.2]} 6. Bg2 {[%clk 0:02:46.9]} 6... dxe4 {[%clk
0:02:55.8]} 7. dxe4 {[%clk 0:02:46.6]} 7... Be6 {[%clk 0:02:52.6]} 8. O-O {[%clk
0:02:45.1]} 8... h6 {[%clk 0:02:52.9]} 9. h3 {[%clk 0:02:44.7]} 9... Nbd7 {[%clk
0:02:52.6]} 10. b3 {[%clk 0:02:43.6]} 10... Bc5 {[%clk 0:02:49]} 11. Bb2 {[%clk
0:02:43.1]} 11... O-O {[%clk 0:02:48.4]} 12. Qe2 {[%clk 0:02:42.4]} 12... b5
{[%clk 0:02:41.6]} 13. a4 {[%clk 0:02:38.4]} 13... a6 {[%clk 0:02:41.4]} 14. Nh4
{[%clk 0:02:37.5]} 14... Rfe8 {[%clk 0:02:35.6]} 15. Kh1 {[%clk 0:02:32.1]}
15... Nb6 {[%clk 0:02:20]} 16. f4 {[%clk 0:02:24]} 16... Bd6 {[%clk 0:02:06.1]}
17. Ndf3 {[%clk 0:02:02.5]} 17... Nh5 {[%clk 0:01:58.5]} 18. Kh2 {[%clk
0:01:14.1]} 18... exf4 {[%clk 0:01:58.1]} 19. e5 {[%clk 0:01:14.3]} 19... Be7
{[%clk 0:01:46.9]} 20. gxf4 {[%clk 0:01:05.9]} 20... Nxf4 {[%clk 0:01:46.4]} 21.
Qf2 {[%clk 0:00:56.9]} 21... Nxg2 {[%clk 0:01:44.1]} 22. Nxg2 {[%clk 0:00:56.2]}
22... bxa4 {[%clk 0:01:34.6]} 23. Nf4 {[%clk 0:00:46.7]} 23... Nd5 {[%clk
0:01:32.3]} 24. Nh5 {[%clk 0:00:42.6]} 24... Bf8 {[%clk 0:01:20.7]} 25. Rg1
{[%clk 0:00:39.4]} 25... Kh8 {[%clk 0:01:15.6]} 26. Rxa4 {[%clk 0:00:35.2]}
26... Qb6 {[%clk 0:01:01]} 27. Qg3 {[%clk 0:00:26.7]} 27... g6 {[%clk
0:00:55.7]} 28. Nf4 {[%clk 0:00:20]} 28... Nxf4 {[%clk 0:00:54.1]} 29. Rxf4
{[%clk 0:00:20.9]} 29... Bg7 {[%clk 0:00:50.7]} 30. Nh4 {[%clk 0:00:20]} 30...
g5 {[%clk 0:00:42.9]} 31. Nf5 {[%clk 0:00:19.9]} 31... Bxf5 {[%clk 0:00:37.5]}
32. Rxf5 {[%clk 0:00:20.8]} 32... Rad8 {[%clk 0:00:37.3]} 33. Rxf7 {[%clk
0:00:20.5]} 33... Rd2+ {[%clk 0:00:37.9]} 34. Kh1 {[%clk 0:00:16.8]} 34... Qd8
{[%clk 0:00:21.3]} 35. Qf3 {[%clk 0:00:13.3]} 35... Qd5 {[%clk 0:00:20.5]} 36.
Qxd5 {[%clk 0:00:13.2]} 36... cxd5 {[%clk 0:00:20.9]} 37. Ra1 {[%clk 0:00:11]}
37... Rxc2 {[%clk 0:00:20.6]} 38. Bd4 {[%clk 0:00:11.3]} 38... Rd2 {[%clk
0:00:21.2]} 39. Bc3 {[%clk 0:00:10.7]} 39... Rd3 {[%clk 0:00:21.2]} 40. Bb2
{[%clk 0:00:11.1]} 40... Rxh3+ {[%clk 0:00:21.2]} 41. Kg2 {[%clk 0:00:10.9]}
41... Rxb3 {[%clk 0:00:21.8]} 42. Bd4 {[%clk 0:00:11.2]} 42... Rd3 {[%clk
0:00:17.2]} 43. Ra4 {[%clk 0:00:11.3]} 43... Bxe5 {[%clk 0:00:14]} 44. Bxe5+
{[%clk 0:00:10]} 44... Rxe5 {[%clk 0:00:14.7]} 45. Rxa6 {[%clk 0:00:10.7]} 45...
Re8 {[%clk 0:00:13.9]} 46. Rxh6+ {[%clk 0:00:10.2]} 46... Kg8 {[%clk 0:00:14]}
47. Rf2 {[%clk 0:00:10.3]} 47... Rde3 {[%clk 0:00:14]} 48. Rg6+ {[%clk
0:00:10.6]} 48... Kh7 {[%clk 0:00:14.4]} 49. Rxg5 {[%clk 0:00:11.5]} 49... R3e5
{[%clk 0:00:14.9]} 50. Rg3 {[%clk 0:00:11.3]} 50... R8e6 {[%clk 0:00:14.3]} 51.
Kg1 {[%clk 0:00:11.4]} 51... Rg6 {[%clk 0:00:13.8]} 52. Rh2+ {[%clk 0:00:11]}
52... Kg7 {[%clk 0:00:14.1]} 53. Rxg6+ {[%clk 0:00:10.4]} 53... Kxg6 {[%clk
0:00:15]} 54. Kf1 {[%clk 0:00:10.6]} 54... Kf5 {[%clk 0:00:15.1]} 55. Rf2+
{[%clk 0:00:10.7]} 55... Ke4 {[%clk 0:00:14]} 56. Re2+ {[%clk 0:00:10.7]} 56...
Kd4 {[%clk 0:00:14.5]} 57. Rxe5 {[%clk 0:00:11.6]} 57... Kxe5 {[%clk 0:00:14.8]}
58. Ke1 {[%clk 0:00:12.3]} 58... Kd4 {[%clk 0:00:12.2]} 59. Kd2 {[%clk
0:00:12.3]} 59... Kc4 {[%clk 0:00:11.3]} 60. Kc2 {[%clk 0:00:12.7]} 60... Kd4
{[%clk 0:00:10.9]} 61. Kd2 {[%clk 0:00:13.1]} 61... Ke4 {[%clk 0:00:11.5]} 62.
Ke2 {[%clk 0:00:13.5]} 62... Ke5 {[%clk 0:00:11.7]} 63. Ke3 {[%clk 0:00:13.1]}
63... Kd6 {[%clk 0:00:12.2]} 64. Kd4 {[%clk 0:00:13.2]} 64... Kc6 {[%clk
0:00:12.9]} 65. Kd3 {[%clk 0:00:13.8]} 65... Kc5 {[%clk 0:00:13.6]} 66. Kc3
{[%clk 0:00:14.4]} 66... d4+ {[%clk 0:00:13.3]} 67. Kd3 {[%clk 0:00:14.8]} 67...
Kd5 {[%clk 0:00:14.2]} 68. Kd2 {[%clk 0:00:15.4]} 68... Kc4 {[%clk 0:00:15.1]}
69. Kc2 {[%clk 0:00:15.5]} 69... d3+ {[%clk 0:00:16]} 70. Kd2 {[%clk 0:00:15.9]}
70... Kd4 {[%clk 0:00:16.8]} 71. Kd1 {[%clk 0:00:16.5]} 71... Kc3 {[%clk
0:00:17.5]} 72. Kc1 {[%clk 0:00:16.9]} 72... d2+ {[%clk 0:00:18.4]} 73. Kd1
{[%clk 0:00:17.3]} 73... Kd3 {[%clk 0:00:19.3]} 1/2-1/2

[Event "Early-Titled-Tuesday-Blitz-March-26-2024"]
[Site "Chess.com"]
[Date "2024.03.26"]
[Round "2"]
[White "Abund"]
[Black "Chess_Gainz"]
[Result "1-0"]
[WhiteElo "2812"]
[BlackElo "2559"]
[TimeControl "180+1"]
[EndTime "8:18:59 PDT"]
[Termination "Abund won on time"]

1. d4 {[%clk 0:03:00.9]} 1... d6 {[%clk 0:03:00]} 2. c4 {[%clk 0:03:00.1]} 2...
e5 {[%clk 0:03:00.2]} 3. Nf3 {[%clk 0:02:59.3]} 3... e4 {[%clk 0:03:00.3]} 4.
Ng5 {[%clk 0:02:54.5]} 4... f5 {[%clk 0:03:00.5]} 5. h4 {[%clk 0:02:54.8]} 5...
Be7 {[%clk 0:03:00.9]} 6. g3 {[%clk 0:02:35.3]} 6... Nf6 {[%clk 0:03:00.7]} 7.
Nc3 {[%clk 0:02:32.3]} 7... O-O {[%clk 0:03:00.1]} 8. Bg2 {[%clk 0:02:27.7]}
8... c6 {[%clk 0:03:00.1]} 9. Nh3 {[%clk 0:02:23.1]} 9... Na6 {[%clk 0:02:58.6]}
10. Nf4 {[%clk 0:02:19.1]} 10... Nc7 {[%clk 0:02:55.1]} 11. b3 {[%clk
0:02:18.1]} 11... d5 {[%clk 0:02:47]} 12. a3 {[%clk 0:02:05.9]} 12... Ne6 {[%clk
0:02:34.9]} 13. Nxe6 {[%clk 0:02:03.7]} 13... Bxe6 {[%clk 0:02:34.9]} 14. c5
{[%clk 0:02:02.2]} 14... Nh5 {[%clk 0:02:27.7]} 15. Bh3 {[%clk 0:01:46.8]} 15...
Qd7 {[%clk 0:02:20.9]} 16. e3 {[%clk 0:01:25.2]} 16... Nf6 {[%clk 0:02:20.8]}
17. Bd2 {[%clk 0:01:22.6]} 17... Ng4 {[%clk 0:02:02.5]} 18. Ne2 {[%clk
0:01:19.5]} 18... h6 {[%clk 0:01:54.5]} 19. h5 {[%clk 0:01:14.9]} 19... Bf7
{[%clk 0:01:52.7]} 20. Bxg4 {[%clk 0:01:01]} 20... fxg4 {[%clk 0:01:52.5]} 21.
Nf4 {[%clk 0:00:54.5]} 21... Bg5 {[%clk 0:01:44.8]} 22. Qe2 {[%clk 0:00:49.3]}
22... a5 {[%clk 0:01:20.5]} 23. O-O-O {[%clk 0:00:48.1]} 23... b6 {[%clk
0:01:13.8]} 24. Kb2 {[%clk 0:00:45.3]} 24... bxc5 {[%clk 0:01:05.3]} 25. dxc5
{[%clk 0:00:45.6]} 25... Bf6+ {[%clk 0:01:05.8]} 26. Bc3 {[%clk 0:00:45.1]}
26... Bxc3+ {[%clk 0:01:05.4]} 27. Kxc3 {[%clk 0:00:46]} 27... Rfb8 {[%clk
0:01:05.2]} 28. Rd4 {[%clk 0:00:44.1]} 28... Rb5 {[%clk 0:01:04]} 29. Rb1 {[%clk
0:00:43]} 29... Rxc5+ {[%clk 0:01:03.7]} 30. Kb2 {[%clk 0:00:40.6]} 30... Rb8
{[%clk 0:00:58.8]} 31. Ka1 {[%clk 0:00:33.8]} 31... Rcb5 {[%clk 0:00:56.6]} 32.
Qc2 {[%clk 0:00:32.5]} 32... Qd6 {[%clk 0:00:53]} 33. Ra4 {[%clk 0:00:15.7]}
33... c5 {[%clk 0:00:52.5]} 34. Qc3 {[%clk 0:00:09.3]} 34... d4 {[%clk
0:00:49.8]} 35. exd4 {[%clk 0:00:09.8]} 35... cxd4 {[%clk 0:00:49.7]} 36. Qxd4
{[%clk 0:00:09.4]} 36... Rxb3 {[%clk 0:00:37.9]} 37. Rxb3 {[%clk 0:00:07.2]}
37... Qxd4+ {[%clk 0:00:37.9]} 38. Rxd4 {[%clk 0:00:07.2]} 38... Rxb3 {[%clk
0:00:38.6]} 39. a4 {[%clk 0:00:07]} 39... Rf3 {[%clk 0:00:32.2]} 40. Rxe4 {[%clk
0:00:06.9]} 40... Rxf2 {[%clk 0:00:32.7]} 41. Re5 {[%clk 0:00:07.1]} 41... Ra2+
{[%clk 0:00:32]} 42. Kb1 {[%clk 0:00:07.1]} 42... Rxa4 {[%clk 0:00:32.7]} 43.
Rc5 {[%clk 0:00:07]} 43... Ra3 {[%clk 0:00:28.2]} 44. Ne2 {[%clk 0:00:04.5]}
44... Re3 {[%clk 0:00:20.3]} 45. Nd4 {[%clk 0:00:04.8]} 45... Rxg3 {[%clk
0:00:18.5]} 46. Rxa5 {[%clk 0:00:05]} 46... Rd3 {[%clk 0:00:17.8]} 47. Nf5
{[%clk 0:00:04.8]} 47... Rd8 {[%clk 0:00:14.3]} 48. Kb2 {[%clk 0:00:03.7]} 48...
Bxh5 {[%clk 0:00:12.7]} 49. Ne7+ {[%clk 0:00:03]} 49... Kf7 {[%clk 0:00:11.2]}
50. Nc6 {[%clk 0:00:03.2]} 50... Rd6 {[%clk 0:00:07]} 51. Ne5+ {[%clk
0:00:02.5]} 51... Ke6 {[%clk 0:00:07.3]} 52. Nc4 {[%clk 0:00:03]} 52... Rd4
{[%clk 0:00:06.6]} 53. Kc3 {[%clk 0:00:02.5]} 53... Rd5 {[%clk 0:00:05.7]} 54.
Ra6+ {[%clk 0:00:02.7]} 54... Ke7 {[%clk 0:00:05.2]} 55. Ra7+ {[%clk 0:00:03.1]}
55... Kf8 {[%clk 0:00:05.8]} 56. Ne3 {[%clk 0:00:03.5]} 56... Rd8 {[%clk
0:00:05.8]} 57. Nf5 {[%clk 0:00:03.6]} 57... Rc8+ {[%clk 0:00:06.3]} 58. Kd4
{[%clk 0:00:03.7]} 58... Bf7 {[%clk 0:00:06.7]} 59. Nd6 {[%clk 0:00:03.4]} 59...
Rd8 {[%clk 0:00:06.8]} 60. Ke5 {[%clk 0:00:04]} 60... h5 {[%clk 0:00:06.6]} 61.
Nxf7 {[%clk 0:00:04.2]} 61... Kg8 {[%clk 0:00:07.5]} 62. Nxd8 {[%clk 0:00:04.6]}
62... g3 {[%clk 0:00:07.4]} 63. Ne6 {[%clk 0:00:05]} 63... g2 {[%clk 0:00:06.8]}
64. Ra1 {[%clk 0:00:05.7]} 64... h4 {[%clk 0:00:07.3]} 65. Nf4 {[%clk
0:00:06.3]} 65... h3 {[%clk 0:00:07.8]} 66. Nxh3 {[%clk 0:00:06.7]} 1-0